bitfinex/quotes_BTCUSD_20251231
["timestamp","ask_amount","ask_price","bid_price","bid_amount"]
[1767192557068,0.45202,88395.0,88373.0,8.015e-05]
[1767192557275,0.45202,88395.0,88373.0,0.49128015]
[1767192558176,0.03990784,88406.0,88373.0,0.49128015]
[1767192558177,0.02995755,88401.0,88373.0,0.49128015]
[1767192558379,0.02182962,88400.0,88373.0,0.49128015]
[1767192558602,0.02995755,88405.0,88375.0,0.47996]
[1767192558798,0.01038786,88404.0,88375.0,0.47996]
[1767192558999,0.01038786,88403.0,88375.0,0.47996]
[1767192559201,0.01144,88406.0,88375.0,0.47996]
[1767192559405,0.45202,88407.0,88375.0,0.47996]
[1767192559406,0.01038693,88405.0,88375.0,0.47996]
[1767192559582,0.45202,88407.0,88377.0,0.47996]
[1767192559583,0.47731,88403.0,88377.0,0.47996]
[1767192559782,0.04139755,88407.0,88377.0,0.47996]
[1767192559783,0.47731,88402.0,88377.0,0.47996]
[1767192559992,0.47731,88400.0,88378.0,0.01144]
[1767192560190,0.47731,88396.0,88378.0,0.010341]
[1767192560474,0.48607,88394.0,88378.0,0.010341]
[1767192560675,0.48607,88394.0,88360.0,0.0004726]
[1767192560677,0.02995755,88390.0,88360.0,0.0004726]
[1767192560903,0.02995755,88382.0,88360.0,0.0004726]
[1767192561114,0.48607,88379.0,88360.0,0.0004726]
[1767192561311,0.49645324,88378.0,88360.0,0.0004726]
[1767192561524,0.48607,88378.0,88360.0,0.0004726]
[1767192562889,0.48607,88378.0,88360.0,0.0005201]
[1767192563317,0.01144,88381.0,88360.0,0.0005201]
[1767192563318,0.48607,88376.0,88360.0,0.0005201]
[1767192563541,0.48607,88376.0,88363.0,0.0002]
[1767192565912,0.535841,88376.0,88353.0,0.0113787]
[1767192566215,0.48607,88376.0,88353.0,0.0113787]
[1767192567417,0.48607,88376.0,88353.0,0.5111487]
[1767192568607,0.48607,88374.0,88353.0,0.0113787]
[1767192568813,0.48607,88372.0,88353.0,0.0113787]
[1767192569127,0.01144,88371.0,88353.0,0.0113787]
[1767192569724,0.01144,88371.0,88354.0,0.49977]
[1767192569928,0.48607,88381.0,88371.0,0.000549]
[1767192569929,0.01144,88372.0,88371.0,0.000549]
[1767192570238,0.48607,88381.0,88371.0,0.000549]
[1767192570445,0.0002,88383.0,88362.0,0.49977]
[1767192571163,0.48617431,88390.0,88355.0,0.05111487]
[1767192571306,0.48617431,88390.0,88353.0,0.0113787]
[1767192571307,0.01144,88389.0,88356.0,0.49977]
[1767192571507,0.48617431,88390.0,88356.0,0.49977]
[1767192571508,0.00010431,88390.0,88357.0,0.49977]
[1767192571750,0.48607,88389.0,88357.0,0.49977]
[1767192572329,0.48607,88389.0,88358.0,0.01144]
[1767192572529,0.48607,88389.0,88359.0,0.49977]
[1767192572728,0.48607,88389.0,88361.0,0.49977]
[1767192572903,0.00010431,88390.0,88361.0,0.49977]
[1767192574282,0.00010431,88390.0,88363.0,0.01131695]
[1767192574486,0.00010431,88390.0,88364.0,0.49977]
[1767192575540,0.48617431,88390.0,88364.0,0.49977]
[1767192575742,0.48617431,88390.0,88366.0,0.49977]
[1767192575743,0.02391351,88389.0,88366.0,0.49977]
[1767192575948,0.02391351,88389.0,88368.0,0.49977]
[1767192576347,0.02391351,88388.0,88368.0,0.49977]
[1767192576530,0.02391351,88387.0,88368.0,0.49977]
[1767192576847,0.00010431,88390.0,88368.0,0.49977]
[1767192577049,0.00010431,88390.0,88370.0,0.49977]
[1767192578601,0.48607,88389.0,88370.0,0.49977]
[1767192578813,0.00010431,88390.0,88337.0,0.49977]
[1767192578814,0.48607,88369.0,88337.0,0.49977]
[1767192579020,0.0002,88370.0,88348.0,0.49977]
[1767192579021,0.00244627,88370.0,88348.0,0.49977]
[1767192579193,0.00224627,88370.0,88355.0,0.49977]
[1767192580217,0.00224627,88370.0,88349.0,0.01144]
[1767192580218,0.48607,88369.0,88349.0,0.01144]
[1767192580395,0.00224627,88370.0,88349.0,0.01144]
[1767192580396,0.48607,88367.0,88349.0,0.01144]
[1767192580597,0.48607,88365.0,88349.0,0.01144]
[1767192580819,0.02398592,88364.0,88349.0,0.01144]
[1767192581022,0.02398592,88364.0,88349.0,0.51121]
[1767192581181,0.00224627,88370.0,88351.0,0.49977]
[1767192581381,0.01041514,88369.0,88351.0,0.49977]
[1767192581637,0.00224627,88370.0,88351.0,0.49977]
[1767192583195,0.48607,88368.0,88350.0,0.051121]
[1767192583400,0.04039999,88369.0,88336.0,0.0004295]
[1767192583401,0.487169,88350.0,88336.0,0.0004295]
[1767192583598,0.0299824,88359.0,88323.0,0.01164]
[1767192583599,0.48607,88348.0,88323.0,0.01164]
[1767192583836,0.48607,88346.0,88323.0,0.01164]
[1767192584036,0.02185592,88347.0,88323.0,0.01164]
[1767192584037,0.48607,88344.0,88324.0,0.051141]
[1767192584772,0.4861763,88344.0,88324.0,0.051141]
[1767192585059,0.4861763,88344.0,88324.0,0.550911]
[1767192585433,0.0001063,88344.0,88324.0,0.550911]
[1767192586024,0.02826183,88356.0,88326.0,0.49977]
[1767192586227,0.48607,88362.0,88329.0,0.49977]
[1767192586429,0.01040669,88361.0,88343.0,0.49977]
[1767192586750,0.00224627,88370.0,88347.0,0.49977]
[1767192586974,0.00224627,88370.0,88358.0,0.49977]
[1767192587152,0.04045969,88379.0,88348.0,0.06017639]
[1767192587153,0.00055185,88379.0,88361.0,0.49977]
[1767192587360,0.00055185,88379.0,88363.0,0.49977]
[1767192587560,0.00055185,88379.0,88364.0,0.51121]
[1767192587737,0.00055185,88379.0,88366.0,0.49977]
[1767192587922,0.0002,88380.0,88365.0,0.04234316]
[1767192587923,1.85e-06,88380.0,88370.0,0.01131605]
[1767192588125,1.85e-06,88380.0,88365.0,0.04234316]
[1767192588126,0.00010829,88380.0,88371.0,0.49977]
[1767192588331,0.0002,88393.0,88373.0,0.49977]
[1767192588537,0.0002,88393.0,88375.0,0.49977]
[1767192588978,0.0002,88393.0,88374.0,0.051141]
[1767192588979,0.48627,88393.0,88374.0,0.051141]
[1767192589155,0.48627,88393.0,88360.0,0.54529]
[1767192589156,0.000549,88375.0,88360.0,0.54529]
[1767192589356,0.00055,88374.0,88366.0,0.01144]
[1767192589557,0.00050838,88374.0,88366.0,0.00544]
[1767192589755,0.48607,88380.0,88366.0,0.00544]
[1767192590980,0.49273,88379.0,88366.0,0.00544]
[1767192591896,0.000507,88366.0,88365.0,0.00010644]
[1767192592299,0.49273,88377.0,88365.0,0.00010644]
[1767192592443,0.49273,88377.0,88365.0,0.00581308]
[1767192593191,0.02398936,88376.0,88365.0,0.00581308]
[1767192593588,0.02398936,88376.0,88365.0,0.47631308]
[1767192593770,0.53263784,88388.0,88365.0,0.47631308]
[1767192593771,0.49273,88388.0,88365.0,0.47631308]
[1767192593973,0.02185265,88387.0,88366.0,0.06362331]
[1767192594179,0.01041265,88386.0,88366.0,0.06362331]
[1767192594420,0.01041265,88385.0,88366.0,0.06362331]
[1767192594564,0.49273,88388.0,88366.0,0.53412331]
[1767192594766,0.0002,88393.0,88366.0,0.53412331]
[1767192594767,0.0104125,88387.0,88366.0,0.53412331]
[1767192594969,0.0002,88393.0,88371.0,0.4705]
[1767192595183,0.0002,88393.0,88372.0,0.4705]
[1767192595530,0.0002,88393.0,88379.0,0.4705]
[1767192595758,0.0004295,88400.0,88386.0,0.52706947]
[1767192595944,0.0002,88442.0,88380.0,0.62320344]
[1767192595945,0.0002,88442.0,88401.0,0.4705]
[1767192595946,0.03990784,88423.0,88401.0,0.4705]
[1767192596147,0.03990784,88423.0,88372.0,0.13292126]
[1767192596148,0.07974163,88438.0,88402.0,0.04705]
[1767192596149,0.49273,88425.0,88402.0,0.04705]
[1767192596305,0.49273,88423.0,88402.0,0.01144]
[1767192596933,0.49273,88423.0,88390.0,0.0002]
[1767192596934,0.000549,88402.0,88390.0,0.01164]
[1767192597258,9.68e-05,88409.0,88390.0,0.01164]
[1767192597478,0.49273,88408.0,88391.0,0.048214]
[1767192597609,0.49273,88408.0,88390.0,0.01164]
[1767192597814,0.000549,88391.0,88390.0,0.01164]
[1767192598242,0.49273,88408.0,88390.0,0.01164]
[1767192600105,0.00020324,88409.0,88390.0,0.01164]
[1767192600315,0.00020324,88409.0,88391.0,0.4705]
[1767192600558,0.49293324,88409.0,88392.0,0.048214]
[1767192600808,0.49293324,88409.0,88390.0,0.01164]
[1767192601425,0.00020324,88409.0,88391.0,0.4705]
[1767192601649,0.00020324,88409.0,88376.0,0.05663528]
[1767192601650,0.001099,88391.0,88376.0,0.01144]
[1767192601851,0.001099,88391.0,88380.0,0.0002]
[1767192601852,0.493829,88391.0,88380.0,0.0002]
[1767192602002,0.49273,88391.0,88380.0,0.0002]
[1767192602215,0.0002,88400.0,88380.0,0.0002]
[1767192602216,0.0002,88400.0,88390.0,0.4705]
[1767192602414,0.07974163,88433.0,88390.0,0.4705]
[1767192602415,0.03990784,88430.0,88399.0,0.61176344]
[1767192602615,0.05980622,88435.0,88411.0,0.4705]
[1767192602616,0.0103939,88429.0,88411.0,0.4705]
[1767192602778,0.0103939,88429.0,88405.0,0.01131157]
[1767192602779,0.07124622,88439.0,88413.0,0.4705]
[1767192602780,0.49273,88438.0,88413.0,0.4705]
[1767192602985,0.49273,88438.0,88413.0,0.41384582]
[1767192603180,0.01144,88439.0,88415.0,0.4705]
[1767192603626,0.50417,88439.0,88415.0,0.4705]
[1767192603828,0.49273,88439.0,88415.0,0.4705]
[1767192604033,0.01144,88455.0,88430.0,0.4705]
[1767192604351,0.50417,88461.0,88432.0,0.4705]
[1767192604542,0.50417,88461.0,88433.0,0.57987034]
[1767192604838,0.49273,88461.0,88433.0,0.4705]
[1767192605055,0.50417,88461.0,88433.0,0.4705]
[1767192605194,0.00059397,88448.0,88433.0,0.4705]
[1767192605609,0.0004,88473.0,88431.0,0.01144]
[1767192605610,0.0004,88473.0,88440.0,0.4705]
[1767192605934,0.0004,88473.0,88441.0,0.01144]
[1767192605935,0.49273,88469.0,88441.0,0.01144]
[1767192606098,0.49273,88469.0,88423.0,0.4705]
[1767192606099,0.49273,88469.0,88442.0,0.01144]
[1767192607141,0.49273,88469.0,88414.0,0.053839]
[1767192607142,0.54324845,88469.0,88414.0,0.04252858]
[1767192607344,0.54324845,88469.0,88423.0,0.51578]
[1767192607345,0.001099,88442.0,88423.0,0.51578]
[1767192607503,0.01144,88461.0,88431.0,0.4705]
[1767192607710,0.01144,88461.0,88432.0,0.01144]
[1767192607711,0.49273,88460.0,88432.0,0.01144]
[1767192607905,0.49273,88460.0,88423.0,0.04528]
[1767192607906,0.49273,88460.0,88431.0,0.01144]
[1767192608207,0.01144,88461.0,88429.0,0.01144]
[1767192608208,0.000549,88431.0,88429.0,0.01144]
[1767192608410,0.000549,88431.0,88417.0,0.04528]
[1767192608606,0.0002,88439.0,88429.0,4.8e-06]
[1767192609362,0.49273,88438.0,88429.0,4.8e-06]
[1767192609772,0.0002,88439.0,88429.0,4.8e-06]
[1767192610180,0.0002,88439.0,88413.0,0.4705]
[1767192610181,0.0002,88439.0,88413.0,0.4621448]
[1767192610336,0.0002,88439.0,88411.0,0.01144]
[1767192610337,0.49273,88438.0,88411.0,0.01144]
[1767192610543,0.49273,88438.0,88412.0,0.005672]
[1767192610942,0.49273,88438.0,88412.0,0.476172]
[1767192611137,0.00030638,88439.0,88412.0,0.476172]
[1767192611324,0.49303638,88439.0,88412.0,0.476172]
[1767192611934,0.49303638,88439.0,88412.0,0.005672]
[1767192612194,0.54348402,88439.0,88412.0,0.005672]
[1767192612543,0.49303638,88439.0,88412.0,0.005672]
[1767192614018,0.49303638,88439.0,88412.0,0.476172]
[1767192614204,0.01144,88438.0,88412.0,0.476172]
[1767192614811,0.49273,88437.0,88412.0,0.005672]
[1767192615386,0.49273,88437.0,88412.0,0.476172]
[1767192615585,0.00030638,88439.0,88414.0,0.4705]
[1767192615830,0.00030638,88439.0,88421.0,0.4705]
[1767192616066,0.00030638,88439.0,88423.0,0.4705]
[1767192616193,0.00030638,88439.0,88385.0,0.06294317]
[1767192616194,0.00030638,88439.0,88397.0,0.4705]
[1767192616195,0.000549,88421.0,88397.0,0.4705]
[1767192616398,0.49273,88424.0,88402.0,0.01144]
[1767192618307,0.49273,88424.0,88391.0,0.04705]
[1767192618505,0.49273,88424.0,88380.0,0.0002]
[1767192618506,0.49273,88401.0,88380.0,0.0002]
[1767192618706,0.000549,88402.0,88380.0,0.0002]
[1767192618707,0.486,88399.0,88380.0,0.0002]
[1767192619202,0.486,88399.0,88380.0,0.045537]
[1767192619667,0.486,88399.0,88380.0,0.04564344]
[1767192619840,0.486,88399.0,88380.0,0.00030644]
[1767192620618,0.01148,88398.0,88380.0,0.00030644]
[1767192621046,0.47439,88405.0,88380.0,0.00030644]
[1767192621247,0.48682019,88404.0,88380.0,0.00030644]
[1767192621446,0.46291,88404.0,88380.0,0.00030644]
[1767192621647,0.01148,88405.0,88364.0,0.4948681]
[1767192621648,0.46291,88402.0,88364.0,0.0005081]
[1767192621815,0.46291,88400.0,88364.0,0.00061454]
[1767192622162,0.03428581,88401.0,88364.0,0.00061454]
[1767192622163,0.46291,88398.0,88364.0,0.00061454]
[1767192622311,0.46291,88396.0,88364.0,0.00061454]
[1767192622512,0.03990784,88401.0,88364.0,0.00061454]
[1767192622513,0.46291,88394.0,88364.0,0.00061454]
[1767192622707,0.46291,88392.0,88364.0,0.00061454]
[1767192622962,0.46291,88390.0,88364.0,0.00061454]
[1767192623163,0.46291,88388.0,88364.0,0.00061454]
[1767192623468,0.46291,88386.0,88364.0,0.00061454]
[1767192623899,0.01148,88387.0,88364.0,0.00061454]
[1767192623900,0.46291,88384.0,88364.0,0.00037154]
[1767192624053,0.01148,88383.0,88364.0,0.00037154]
[1767192624658,0.46291,88384.0,88364.0,0.00037154]
[1767192625400,0.05980622,88406.0,88364.0,0.00037154]
[1767192625401,0.01148,88390.0,88384.0,0.001099]
[1767192625598,0.46291,88400.0,88364.0,0.00037154]
[1767192625599,0.01148,88394.0,88372.0,0.49436]
[1767192625779,0.46291,88400.0,88373.0,0.05171566]
[1767192626003,0.0002,88394.0,88375.0,0.49436]
[1767192626614,0.02390657,88407.0,88374.0,0.0002]
[1767192626615,0.02390657,88407.0,88383.0,0.49436]
[1767192626926,0.46291,88417.0,88380.0,0.61176344]
[1767192626927,0.01148,88416.0,88385.0,0.49436]
[1767192627082,0.03538983,88416.0,88385.0,0.49436]
[1767192627267,0.03538983,88416.0,88384.0,0.01148]
[1767192627268,0.03538983,88416.0,88387.0,0.49436]
[1767192627677,0.01148,88416.0,88387.0,0.49436]
[1767192628359,0.48682233,88428.0,88387.0,0.49436]
[1767192628535,0.48682233,88428.0,88386.0,0.11402329]
[1767192628536,0.04577108,88427.0,88391.0,0.49436]
[1767192628725,0.03429108,88426.0,88393.0,0.49436]
[1767192628876,0.03429108,88426.0,88392.0,0.10216684]
[1767192628877,0.46291,88425.0,88397.0,0.0113126]
[1767192629081,0.46291,88425.0,88394.0,0.02279298]
[1767192629082,0.0002,88439.0,88410.0,0.61176344]
[1767192629361,0.0002,88439.0,88394.0,0.28301746]
[1767192629362,0.46291,88437.0,88411.0,0.01148]
[1767192629500,0.46291,88435.0,88411.0,0.01148]
[1767192629683,0.46291,88433.0,88411.0,0.01148]
[1767192631060,0.0001064,88435.0,88411.0,0.50584]
[1767192631325,0.0001064,88435.0,88413.0,0.49436]
[1767192633046,0.46291,88443.0,88412.0,0.050584]
[1767192633047,0.46291,88464.0,88423.0,0.49436]
[1767192633235,0.46291,88464.0,88420.0,0.89584491]
[1767192633236,0.46291,88460.0,88425.0,0.49436]
[1767192633434,0.04579002,88463.0,88425.0,0.49436]
[1767192633435,0.46291,88458.0,88425.0,0.49436]
[1767192633600,0.46291,88456.0,88427.0,0.49436]
[1767192633937,0.02392553,88455.0,88427.0,0.49436]
[1767192635310,0.02392553,88455.0,88426.0,0.050584]
[1767192635311,0.46291,88454.0,88426.0,0.050584]
[1767192635509,0.48683553,88453.0,88426.0,0.544944]
[1767192635697,0.04026242,88464.0,88428.0,0.49436]
[1767192635698,0.01144,88454.0,88428.0,0.49436]
[1767192635937,0.49828407,88460.0,88428.0,0.49436]
[1767192636111,0.48684407,88459.0,88428.0,0.49436]
[1767192636325,0.02393407,88458.0,88428.0,0.49436]
[1767192636532,0.48684407,88458.0,88430.0,0.48625428]
[1767192636732,0.00035458,88464.0,88430.0,0.48625428]
[1767192636733,0.0002,88440.0,88431.0,0.49436]
[1767192636934,0.0002,88440.0,88429.0,0.07334929]
[1767192636935,0.00035458,88464.0,88440.0,0.49436]
[1767192637135,0.00035458,88464.0,88434.0,0.01130786]
[1767192637136,0.00035458,88464.0,88442.0,0.49436]
[1767192638993,0.02433902,88473.0,88455.0,0.01130518]
[1767192638994,0.0004,88473.0,88455.0,0.01130518]
[1767192639131,0.46291,88493.0,88464.0,0.49436]
[1767192639132,0.02393939,88492.0,88464.0,0.49436]
[1767192639326,0.46291,88493.0,88464.0,0.49436]
[1767192639327,0.46291,88493.0,88466.0,0.49436]
[1767192639570,0.4748581,88501.0,88466.0,0.49436]
[1767192639771,0.02393003,88500.0,88466.0,0.49436]
[1767192639970,0.02393003,88500.0,88465.0,0.01144]
[1767192639971,0.48684003,88500.0,88468.0,0.49436]
[1767192640174,0.46291,88499.0,88468.0,0.49386]
[1767192640538,0.46291,88497.0,88467.0,0.06456599]
[1767192640737,0.46291,88497.0,88464.0,0.00010633]
[1767192640739,0.000549,88467.0,88464.0,0.00010633]
[1767192640993,0.01144,88487.0,88465.0,0.01144]
[1767192641337,0.47435,88487.0,88465.0,0.01144]
[1767192641746,0.02389263,88486.0,88448.0,0.49436]
[1767192641963,0.46291,88485.0,88449.0,0.060876]
[1767192642200,0.46291,88483.0,88449.0,0.060876]
[1767192642807,0.463043,88483.0,88450.0,0.49436]
[1767192643904,0.463043,88483.0,88451.0,0.01144]
[1767192644239,0.46291,88481.0,88451.0,0.01144]
[1767192644787,0.463043,88481.0,88451.0,0.01144]
[1767192644991,0.463043,88481.0,88451.0,0.5058]
[1767192645593,0.000133,88481.0,88452.0,0.49436]
[1767192645836,0.000133,88481.0,88456.0,0.01130505]
[1767192646036,0.000133,88481.0,88451.0,0.01144]
[1767192646037,0.000133,88481.0,88457.0,0.58734953]
[1767192646238,0.46291,88480.0,88457.0,0.58734953]
[1767192646793,0.000133,88480.0,88457.0,0.58734953]
[1767192646929,0.00010627,88486.0,88480.0,0.000549]
[1767192647133,0.00010627,88486.0,88457.0,0.14951414]
[1767192647134,0.00010627,88486.0,88473.0,0.49436001]
[1767192647338,0.00010627,88486.0,88474.0,0.049436]
[1767192648471,0.001099,88474.0,88473.0,0.49436001]
[1767192648635,0.001099,88474.0,88473.0,1e-08]
[1767192648838,0.00010627,88486.0,88473.0,1e-08]
[1767192649054,0.00010627,88486.0,88458.0,0.49436]
[1767192649055,0.46301627,88486.0,88458.0,0.49436]
[1767192649217,0.46301627,88486.0,88459.0,0.07017495]
[1767192649659,0.46301627,88486.0,88459.0,0.55309495]
[1767192649862,0.46301627,88486.0,88460.0,0.01144]
[1767192651709,0.46301627,88486.0,88461.0,0.47901]
[1767192651710,0.00010627,88486.0,88461.0,0.47901]
[1767192651957,0.48894,88505.0,88477.0,0.47901]
[1767192651958,0.0002,88505.0,88477.0,0.47901]
[1767192652171,0.0002,88505.0,88482.0,0.47901]
[1767192652990,0.48914,88513.0,88481.0,0.01130186]
[1767192652991,0.0004,88518.0,88488.0,0.01130096]
[1767192653158,0.0004,88518.0,88489.0,0.49045]
[1767192653356,0.0004,88518.0,88491.0,0.47901]
[1767192654046,0.48874,88516.0,88492.0,0.01144]
[1767192654206,0.48874,88516.0,88493.0,0.01144]
[1767192654597,0.0004,88518.0,88493.0,0.49045]
[1767192654798,0.0004,88518.0,88494.0,0.528055]
[1767192655267,0.48914,88518.0,88494.0,0.528055]
[1767192655444,0.48897889,88517.0,88495.0,0.01144]
[1767192655671,0.48897889,88517.0,88496.0,0.01144]
[1767192656067,0.48897889,88517.0,88486.0,0.47901]
[1767192656290,0.48897889,88517.0,88477.0,0.06792038]
[1767192656291,0.48897889,88517.0,88488.0,0.47901]
[1767192656498,0.48897889,88517.0,88494.0,0.47901]
[1767192656499,0.00023889,88517.0,88494.0,0.47901]
[1767192656704,0.00023889,88517.0,88496.0,0.47901]
[1767192657000,0.00023889,88517.0,88499.0,0.47901]
[1767192657163,0.0004,88518.0,88497.0,0.47901]
[1767192657367,0.0004,88518.0,88500.0,0.47901]
[1767192657617,0.0004,88518.0,88502.0,0.49030917]
[1767192657807,0.0004,88518.0,88501.0,0.01649358]
[1767192657808,0.0004,88518.0,88504.0,0.47901]
[1767192658005,0.0004,88518.0,88493.0,0.47901]
[1767192658006,0.48914,88518.0,88493.0,0.47901]
[1767192658341,0.48914,88518.0,88496.0,0.04524]
[1767192658828,0.0004,88518.0,88497.0,0.47901]
[1767192659018,0.00050629,88518.0,88499.0,0.47901]
[1767192659170,0.0004,88532.0,88501.0,0.47901]
[1767192659370,0.0004,88532.0,88503.0,0.47901]
[1767192660392,0.0004,88532.0,88501.0,0.00010629]
[1767192660393,0.0004,88532.0,88506.0,0.49030866]
[1767192660571,0.0004,88532.0,88508.0,0.47901]
[1767192660769,0.0004,88532.0,88509.0,0.01939945]
[1767192660973,0.48874,88531.0,88509.0,0.01939945]
[1767192661176,0.000549,88509.0,88501.0,0.00010629]
[1767192661373,0.48874,88521.0,88501.0,0.00010629]
[1767192661579,0.48874,88521.0,88502.0,0.01144]
[1767192662188,0.0004,88532.0,88501.0,0.00010629]
[1767192662189,0.000549,88502.0,88501.0,0.00010629]
[1767192662429,0.48874,88526.0,88501.0,0.01154629]
[1767192662663,0.48874,88524.0,88501.0,0.01154629]
[1767192662840,0.48874,88522.0,88501.0,0.01154629]
[1767192663043,0.48874,88520.0,88501.0,0.01154629]
[1767192663263,0.48874,88518.0,88501.0,0.01154629]
[1767192663914,0.48874,88518.0,88486.0,0.23732448]
[1767192663915,0.04126983,88527.0,88478.0,0.04524]
[1767192663916,0.48929,88501.0,88478.0,0.04524]
[1767192664124,0.48929,88501.0,88479.0,0.01144]
[1767192664364,0.48874,88501.0,88479.0,0.01144]
[1767192664567,0.48874,88501.0,88482.0,0.01130173]
[1767192664768,0.48874,88515.0,88484.0,0.47901]
[1767192664971,0.02394941,88514.0,88484.0,0.47901]
[1767192665380,0.51268941,88514.0,88484.0,0.05650696]
[1767192665551,0.02394941,88513.0,88485.0,0.47901]
[1767192666926,0.48874,88512.0,88483.0,0.00792838]
[1767192667132,0.48874,88510.0,88486.0,0.01144]
[1767192667367,0.51268941,88509.0,88487.0,0.00646084]
[1767192667570,0.48874,88507.0,88487.0,0.00646084]
[1767192667750,0.51268941,88506.0,88487.0,0.00646084]
[1767192668082,0.51268941,88505.0,88487.0,0.00646084]
[1767192668288,0.48874,88513.0,88487.0,0.00646084]
[1767192668493,0.51272855,88512.0,88488.0,0.05500792]
[1767192668691,0.02982983,88514.0,88488.0,0.05500792]
[1767192668692,0.02398855,88511.0,88488.0,0.05500792]
[1767192668871,0.02398855,88511.0,88488.0,0.53401792]
[1767192668872,0.02398855,88510.0,88488.0,0.53401792]
[1767192669489,0.02398855,88510.0,88490.0,0.47901]
[1767192669690,0.02398855,88509.0,88492.0,0.47901]
[1767192669887,0.00010625,88515.0,88492.0,0.47901]
[1767192670090,0.00010625,88515.0,88497.0,0.47901]
[1767192670269,0.00010625,88515.0,88493.0,0.01130032]
[1767192670270,0.00010625,88515.0,88498.0,0.49045]
[1767192670907,0.00010625,88515.0,88491.0,0.12864574]
[1767192670908,0.00010625,88515.0,88491.0,0.06084234]
[1767192671108,0.48874,88514.0,88492.0,0.01144]
[1767192671282,0.48874,88512.0,88492.0,0.01144]
[1767192671485,0.48874,88510.0,88492.0,0.01144]
[1767192671886,0.48874,88510.0,88493.0,0.01144]
[1767192672087,0.00010625,88515.0,88493.0,0.01144]
[1767192672088,0.48874,88508.0,88493.0,0.01144]
[1767192672406,0.48874,88508.0,88487.0,0.00646084]
[1767192672407,0.00055,88493.0,88487.0,0.00646084]
[1767192672811,0.00055,88493.0,88477.0,0.47901]
[1767192672812,0.00055,88493.0,88488.0,0.01144]
[1767192673157,0.02399211,88507.0,88477.0,0.47901]
[1767192673158,0.48874,88500.0,88489.0,0.01144]
[1767192673365,0.02399211,88499.0,88490.0,0.01144]
[1767192673566,0.51273211,88499.0,88486.0,0.01144]
[1767192673695,0.48929,88490.0,88486.0,0.01144]
[1767192673879,0.00055,88490.0,88486.0,0.01144]
[1767192674082,0.34919227,88497.0,88486.0,0.01144]
[1767192674536,0.34919227,88497.0,88485.0,0.01144]
[1767192675066,0.34919227,88497.0,88484.0,0.01144]
[1767192675197,0.48894,88500.0,88482.0,0.01144]
[1767192675398,0.49916426,88499.0,88482.0,0.01144]
[1767192675605,0.01042426,88498.0,88482.0,0.01144]
[1767192675802,0.0002,88500.0,88482.0,0.01144]
[1767192675803,0.01042426,88497.0,88483.0,0.47901]
[1767192676003,0.01042426,88497.0,88482.0,0.01144]
[1767192676004,0.0002,88500.0,88485.0,0.48831135]
[1767192676208,0.02982983,88514.0,88500.0,0.0002]
[1767192676565,0.02982983,88514.0,88484.0,0.049045]
[1767192676566,0.0002,88510.0,88495.0,0.01144]
[1767192676768,0.01042782,88509.0,88495.0,0.01144]
[1767192676990,0.01042782,88508.0,88495.0,0.01144]
[1767192677141,0.01042782,88507.0,88495.0,0.01144]
[1767192677309,0.01042782,88506.0,88495.0,0.01144]
[1767192677508,0.01042782,88506.0,88490.0,0.0002]
[1767192677509,0.01042782,88505.0,88490.0,0.0002]
[1767192677736,0.48874,88509.0,88490.0,0.0002]
[1767192677737,0.48874,88507.0,88491.0,0.0642655]
[1767192677934,0.01043003,88506.0,88491.0,0.01144]
[1767192678139,0.01043003,88505.0,88491.0,0.01144]
[1767192678359,0.01043003,88504.0,88491.0,0.01144]
[1767192678557,0.0002,88510.0,88490.0,0.0002]
[1767192678558,0.48874,88502.0,88490.0,0.0002]
[1767192678777,0.01043254,88503.0,88490.0,0.0002]
[1767192678778,0.48788,88500.0,88490.0,0.01164]
[1767192679118,0.02982983,88507.0,88490.0,0.01164]
[1767192679119,0.49831254,88499.0,88490.0,0.01164]
[1767192679390,0.01043254,88498.0,88490.0,0.01164]
[1767192679717,0.48788,88499.0,88490.0,0.01164]
[1767192679999,0.02982983,88506.0,88490.0,0.01164]
[1767192680200,0.01043618,88505.0,88490.0,0.01164]
[1767192680380,0.01043618,88504.0,88490.0,0.01164]
[1767192680564,0.01043618,88503.0,88490.0,0.01164]
[1767192680760,0.01043618,88502.0,88490.0,0.01164]
[1767192681076,0.02982983,88505.0,88490.0,0.01164]
[1767192681077,0.01043618,88501.0,88490.0,0.01164]
[1767192681281,0.01043618,88500.0,88490.0,0.01164]
[1767192681478,0.01043618,88499.0,88490.0,0.01164]
[1767192681717,0.01043618,88498.0,88491.0,0.01144]
[1767192681862,0.01043618,88497.0,88491.0,0.01144]
[1767192682073,0.48788,88506.0,88497.0,0.001099]
[1767192682274,0.01044912,88505.0,88497.0,0.00060233]
[1767192682474,0.01044913,88504.0,88491.0,0.01144]
[1767192682697,0.01044913,88503.0,88491.0,0.01144]
[1767192682950,0.01044913,88502.0,88492.0,0.047432]
[1767192683098,0.01044913,88502.0,88478.0,0.05654224]
[1767192683099,0.000497,88492.0,88472.0,0.46268]
[1767192683453,0.000497,88492.0,88473.0,0.01144]
[1767192683454,0.01044722,88491.0,88473.0,0.01144]
[1767192683583,0.46262,88493.0,88473.0,0.01144]
[1767192683785,0.01044723,88492.0,88474.0,0.06522813]
[1767192683980,0.01044723,88491.0,88474.0,0.06522813]
[1767192684243,0.46262,88493.0,88474.0,0.06522813]
[1767192684404,0.01044555,88492.0,88474.0,0.06522813]
[1767192684627,0.46262,88493.0,88474.0,0.06522813]
[1767192684824,0.01044555,88492.0,88475.0,0.07175094]
[1767192685032,0.46262,88493.0,88475.0,0.07175094]
[1767192685463,0.02982983,88496.0,88471.0,0.01144]
[1767192685464,0.49244983,88485.0,88471.0,0.01144]
[1767192685629,0.50289358,88484.0,88471.0,0.01144]
[1767192685954,0.01044375,88483.0,88471.0,0.01144]
[1767192686175,0.0087739,88483.0,88471.0,0.01144]
[1767192686297,0.02952306,88493.0,88471.0,0.01144]
[1767192686504,0.07974163,88515.0,88471.0,0.01144]
[1767192686505,0.03987169,88508.0,88493.0,0.00055]
[1767192686703,0.46262,88509.0,88489.0,0.46268]
[1767192686704,0.01044114,88507.0,88492.0,0.01144]